bitfinex-derivatives/quotes_BTCF0:USTF0_20240824
["timestamp","ask_amount","ask_price","bid_price","bid_amount"]
[1724509770626,0.0778,64238.0,64237.0,0.10550314]
[1724509770833,0.1678,64238.0,64237.0,0.10550314]
[1724509771221,0.0778,64238.0,64237.0,0.10550314]
[1724509771426,0.1678,64238.0,64237.0,0.10550314]
[1724509785334,0.2453879,64238.0,64237.0,0.10550314]
[1724509786032,0.1678,64238.0,64237.0,0.10550314]
[1724509786226,0.2453879,64238.0,64237.0,0.10550314]
[1724509786631,0.1678,64238.0,64237.0,0.10550314]
[1724509786832,0.2453879,64238.0,64237.0,0.10550314]
[1724509787533,0.1678,64238.0,64237.0,0.10550314]
[1724509787933,0.24551874,64238.0,64237.0,0.10550314]
[1724509788232,0.1678,64238.0,64237.0,0.10550314]
[1724509788429,0.20178145,64238.0,64237.0,0.10550314]
[1724509788938,0.20180657,64238.0,64237.0,0.10550314]
[1724509789239,0.1678,64238.0,64237.0,0.10550314]
[1724509789444,0.20181734,64238.0,64237.0,0.10550314]
[1724509794237,0.20185682,64238.0,64237.0,0.10550314]
[1724509795843,0.29509233,64238.0,64237.0,0.10550314]
[1724509796839,0.20185682,64238.0,64237.0,0.02770214]
[1724509797934,0.20185682,64238.0,64237.0,0.10550314]
[1724509798134,0.20185682,64238.0,64237.0,0.02770214]
[1724509801643,0.29509233,64238.0,64237.0,0.02770214]
[1724509801843,0.37289233,64238.0,64237.0,0.02770214]
[1724509802047,0.37289233,64238.0,64237.0,0.0118781]
[1724509802048,0.27965682,64238.0,64237.0,0.0118781]
[1724509802242,0.077806,64233.0,64232.0,0.0564]
[1724509802440,0.56266282,64233.0,64232.0,0.0564]
[1724509802749,0.077816,64225.0,64220.0,0.17286856]
[1724509802948,0.077823,64219.0,64215.0,0.06196856]
[1724509803245,0.077823,64219.0,64208.0,0.3608]
[1724509803246,0.09,64216.0,64202.0,0.06196856]
[1724509803444,0.09,64204.0,64201.0,0.04659979]
[1724509803646,0.09,64204.0,64201.0,0.077844]
[1724509803841,0.09,64204.0,64203.0,0.02805557]
[1724509804043,0.09,64204.0,64203.0,0.00011116]
[1724509804246,0.15207381,64204.0,64203.0,0.00011116]
[1724509804465,0.06207064,64204.0,64203.0,0.00011116]
[1724509804647,0.15207064,64204.0,64203.0,0.00011116]
[1724509805054,0.09,64204.0,64197.0,0.00023353]
[1724509805351,0.09,64204.0,64182.0,0.04659979]
[1724509805352,0.3608,64198.0,64182.0,0.04659979]
[1724509805544,0.09,64183.0,64180.0,0.1105]
[1724509805743,0.04646788,64189.0,64182.0,0.4508]
[1724509805943,0.04646788,64189.0,64182.0,0.36861838]
[1724509805944,0.09,64189.0,64182.0,0.36861838]
[1724509806145,0.00011116,64188.0,64182.0,0.36861838]
[1724509806345,0.00011116,64188.0,64187.0,0.09]
[1724509806551,0.00011116,64188.0,64182.0,0.36861838]
[1724509806552,0.00011116,64188.0,64182.0,1.05601838]
[1724509806941,0.00011116,64188.0,64187.0,0.077862]
[1724509807145,0.00023371,64192.0,64191.0,0.077857]
[1724509807359,0.00023371,64192.0,64191.0,0.297857]
[1724509807545,0.00023371,64192.0,64191.0,0.765217]
[1724509807944,0.00023371,64192.0,64191.0,0.765257]
[1724509808549,0.00023371,64192.0,64191.0,0.773257]
[1724509808750,0.3608,64206.0,64197.0,0.077849]
[1724509808960,0.3608,64206.0,64191.0,1.0954]
[1724509808961,0.3608,64206.0,64198.0,0.181348]
[1724509809649,0.3608,64206.0,64205.0,4e-05]
[1724509811057,0.3638,64206.0,64205.0,0.00104]
[1724509811554,0.3658,64206.0,64205.0,0.00204]
[1724509812042,0.005,64206.0,64205.0,0.00204]
[1724509813246,0.003,64206.0,64205.0,0.00504]
[1724509813553,0.00023371,64208.0,64205.0,0.081879]
[1724509813858,0.00023371,64208.0,64205.0,0.084879]
[1724509814050,0.297838,64207.0,64205.0,0.00704]
[1724509814244,0.07785,64197.0,64189.0,0.3608]
[1724509814756,0.07785,64197.0,64189.0,0.38828741]
[1724509817352,0.07785,64197.0,64196.0,0.00223371]
[1724509817748,0.07785,64197.0,64196.0,0.00423371]
[1724509818958,0.3608,64200.0,64196.0,0.00423371]
[1724509819258,0.077844,64202.0,64196.0,0.00423371]
[1724509819470,0.077844,64202.0,64196.0,0.0324817]
[1724509820055,0.077844,64202.0,64201.0,4e-05]
[1724509821552,0.080844,64202.0,64201.0,4e-05]
[1724509821757,0.006,64202.0,64201.0,4e-05]
[1724509822661,0.00604,64202.0,64201.0,4e-05]
[1724509823363,0.00604,64202.0,64201.0,0.077885]
[1724509825257,0.00604,64202.0,64201.0,4e-05]
[1724509825461,0.083883,64202.0,64201.0,4e-05]
[1724509825654,0.07785,64197.0,64196.0,0.0284817]
[1724509825859,0.07785,64197.0,64196.0,0.00023371]
[1724509826061,0.077862,64187.0,64180.0,0.29587]
[1724509826255,1.8,64186.0,64180.0,0.2188]
[1724509826568,1.8,64186.0,64180.0,0.218]
[1724509826764,4e-05,64184.0,64180.0,0.218]
[1724509827467,4e-05,64184.0,64183.0,0.4670625]
[1724509827663,4e-05,64184.0,64183.0,0.4810625]
[1724509827964,0.00104,64184.0,64183.0,0.4950625]
[1724509828460,0.00104,64184.0,64183.0,0.4810625]
[1724509828660,0.00204,64184.0,64183.0,0.4950625]
[1724509832165,0.00204,64184.0,64183.0,0.3888]
[1724509832166,0.079905,64184.0,64183.0,0.3888]
[1724509832364,0.60935617,64184.0,64183.0,0.3888]
[1724509832571,0.077873,64178.0,64177.0,0.00023371]
[1724509832864,0.658673,64178.0,64177.0,0.00023371]
[1724509833258,0.658713,64178.0,64177.0,0.00023371]
[1724509833459,0.438713,64178.0,64177.0,0.00023371]
[1724509834059,0.439713,64178.0,64177.0,0.00923371]
[1724509834263,0.439713,64178.0,64177.0,0.01123371]
[1724509834873,0.440713,64178.0,64177.0,0.00023371]
[1724509835073,0.440713,64178.0,64177.0,0.00323371]
[1724509835273,0.50071735,64178.0,64177.0,0.00323371]
[1724509835478,0.50071735,64178.0,64177.0,0.00523371]
[1724509835973,0.438713,64178.0,64177.0,0.00523371]
[1724509836363,0.48520489,64178.0,64177.0,0.00523371]
[1724509836571,0.438713,64178.0,64177.0,0.00523371]
[1724509836772,0.48520496,64178.0,64177.0,0.00523371]
[1724509836974,0.48520496,64178.0,64177.0,0.00323371]
[1724509837275,0.48519883,64178.0,64177.0,0.00023371]
[1724509837579,0.48519883,64178.0,64177.0,0.00223371]
[1724509838570,0.438713,64178.0,64177.0,0.00323371]
[1724509838776,0.36084,64178.0,64177.0,0.00423371]
[1724509839069,0.40731476,64178.0,64177.0,0.08210771]
[1724509839368,0.36084,64178.0,64177.0,0.08110771]
[1724509839572,0.36084,64178.0,64177.0,0.07810771]
[1724509839774,0.36084,64178.0,64177.0,0.08110771]
[1724509840575,4e-05,64178.0,64177.0,0.08110771]
[1724509842474,4e-05,64178.0,64177.0,0.10937777]
[1724509844173,4e-05,64178.0,64177.0,0.03150377]
[1724509844680,0.04651476,64178.0,64177.0,0.03150377]
[1724509846178,0.12438776,64178.0,64177.0,0.03150377]
[1724509846479,0.077913,64178.0,64177.0,0.03150377]
[1724509849572,4e-05,64178.0,64177.0,0.03150377]
[1724509849772,0.04656839,64178.0,64177.0,0.03150377]
[1724509849972,0.04656839,64178.0,64177.0,0.08380377]
[1724509850583,0.04656839,64178.0,64177.0,0.16167777]
[1724509850983,4e-05,64178.0,64177.0,0.16167777]
[1724509851172,4e-05,64178.0,64177.0,0.21527777]
[1724509854279,0.04656839,64178.0,64177.0,0.21527777]
[1724509854786,4e-05,64178.0,64177.0,0.26159832]
[1724509855287,0.04667958,64178.0,64177.0,0.21527777]
[1724509859489,4e-05,64178.0,64177.0,0.21527777]
[1724509859987,0.04669247,64178.0,64177.0,0.21527777]
[1724509860379,4e-05,64178.0,64177.0,0.27724633]
[1724509863395,4e-05,64178.0,64177.0,0.21527777]
[1724509864496,0.06204435,64178.0,64177.0,0.21527777]
[1724509864685,4e-05,64178.0,64177.0,0.21527777]
[1724509865292,0.06204435,64178.0,64177.0,0.21527777]
[1724509865592,4e-05,64178.0,64177.0,0.21527777]
[1724509866493,0.06204435,64178.0,64177.0,0.21527777]
[1724509866887,4e-05,64178.0,64177.0,0.21527777]
[1724509867285,0.06204435,64178.0,64177.0,0.21527777]
[1724509867887,4e-05,64178.0,64177.0,0.21527777]
[1724509868091,0.06204435,64178.0,64177.0,0.21527777]
[1724509868697,4e-05,64178.0,64177.0,0.21527777]
[1724509868999,4e-05,64178.0,64177.0,0.16167777]
[1724509869000,0.06204435,64178.0,64177.0,0.16167777]
[1724509878304,4e-05,64178.0,64177.0,0.16167777]
[1724509879009,0.06232194,64178.0,64177.0,0.16167777]
[1724509879306,4e-05,64178.0,64177.0,0.16167777]
[1724509882804,4e-05,64178.0,64177.0,0.10937777]
[1724509886516,4e-05,64178.0,64177.0,0.19937777]
[1724509888612,4e-05,64178.0,64177.0,0.10937777]
[1724509891111,0.46748,64177.0,64174.0,0.04671939]
[1724509891407,0.14646965,64176.0,64162.0,0.00770539]
[1724509891613,0.51653741,64163.0,64159.0,0.00017678]
[1724509892312,0.06221796,64160.0,64159.0,0.00017678]
[1724509892508,0.06225796,64160.0,64159.0,0.00784478]
[1724509893107,0.06225796,64160.0,64159.0,0.01384478]
[1724509893308,4e-05,64160.0,64159.0,0.01384478]
[1724509894010,4e-05,64160.0,64159.0,0.00784478]
[1724509894205,0.00204,64160.0,64159.0,0.01984478]
[1724509896214,0.40942593,64160.0,64159.0,0.01684478]
[1724509896806,0.40942593,64160.0,64159.0,0.01384478]
[1724509896807,0.36184,64160.0,64159.0,0.01384478]
[1724509897116,0.36284,64160.0,64159.0,0.01584478]
[1724509898011,0.36284,64160.0,64159.0,0.01484478]
[1724509898611,0.36284,64160.0,64159.0,0.09273978]
[1724509898811,0.04658593,64164.0,64163.0,0.077891]
[1724509899015,0.00023371,64167.0,64163.0,0.3608]
[1724509899316,0.00023371,64167.0,64164.0,0.1092]
[1724509899724,0.00023371,64167.0,64166.0,4e-05]
[1724509900015,0.00023371,64167.0,64166.0,0.077927]
[1724509901416,0.077879,64173.0,64169.0,0.077883]
[1724509901619,0.077879,64173.0,64172.0,0.3608]
[1724509901816,0.04658593,64174.0,64172.0,0.3608]
[1724509902026,0.04658593,64175.0,64174.0,0.077877]
[1724509902219,0.04658593,64176.0,64173.0,0.0565]
[1724509902624,0.04658593,64176.0,64175.0,0.077876]
[1724509902923,0.04658593,64176.0,64175.0,0.077916]
[1724509904225,0.06221796,64179.0,64175.0,0.079916]
[1724509904529,0.06221796,64179.0,64176.0,0.053]
[1724509904722,0.0465686,64177.0,64176.0,0.1088]
[1724509905723,0.04656914,64177.0,64176.0,0.1088]
[1724509906617,0.04656914,64177.0,64176.0,0.1098]
[1724509907525,0.04656914,64177.0,64176.0,0.137455]
[1724509907917,0.04656914,64178.0,64176.0,0.137455]
[1724509908123,0.04656914,64178.0,64176.0,0.138455]
[1724509908620,0.04656914,64178.0,64177.0,4e-05]
[1724509910126,0.04657675,64178.0,64177.0,4e-05]
[1724509910428,0.077871,64179.0,64177.0,4e-05]
[1724509911027,0.077871,64179.0,64177.0,0.00104]
[1724509911238,0.077871,64179.0,64178.0,4e-05]
[1724509913524,0.078871,64179.0,64178.0,4e-05]
[1724509914228,0.079871,64179.0,64178.0,4e-05]
[1724509914533,0.14208896,64179.0,64178.0,4e-05]
[1724509915027,0.079871,64179.0,64178.0,4e-05]
[1724509915326,0.14208896,64179.0,64178.0,4e-05]
[1724509915727,0.14208896,64179.0,64178.0,0.36084]
[1724509915921,0.079871,64179.0,64178.0,0.36084]
[1724509919037,0.14208896,64179.0,64178.0,0.36084]
[1724509920624,0.079871,64179.0,64178.0,0.36084]
[1724509920931,0.002,64179.0,64178.0,0.36084]
[1724509922127,0.079872,64179.0,64178.0,0.36084]
[1724509922729,0.14208996,64179.0,64178.0,0.36084]
[1724509923231,0.079872,64179.0,64178.0,0.36084]
[1724509927635,0.002,64179.0,64178.0,0.438713]
[1724509928330,0.002,64179.0,64178.0,0.36084]
[1724509928535,0.002,64179.0,64178.0,0.45084]
[1724509932237,0.002,64179.0,64178.0,0.528713]
[1724509932441,0.002,64179.0,64178.0,0.59100552]
[1724509933731,0.002,64179.0,64178.0,0.51313252]
[1724509933938,0.16984641,64179.0,64178.0,0.36084]
[1724509935940,0.07984641,64179.0,64178.0,0.438713]
[1724509936534,0.002,64179.0,64178.0,0.438713]
[1724509937238,0.06428383,64179.0,64178.0,0.438713]
[1724509939555,0.002,64179.0,64178.0,0.438713]
[1724509939950,0.05736383,64180.0,64179.0,0.077871]
[1724509940153,0.05759754,64181.0,64179.0,0.09792078]
[1724509940854,0.04664577,64180.0,64179.0,0.17579178]
[1724509941349,0.002,64180.0,64179.0,0.17579178]
[1724509942150,0.004,64180.0,64179.0,0.17579178]
[1724509949063,0.004,64180.0,64179.0,0.08579178]
[1724509950964,0.004,64180.0,64179.0,0.00792078]
[1724509951157,0.004,64180.0,64178.0,0.42294361]
[1724509951158,0.004,64180.0,64178.0,0.3608]
[1724509951550,0.004,64180.0,64178.0,0.36853978]
[1724509951551,0.167871,64179.0,64178.0,0.36853978]
[1724509952257,0.077874,64177.0,64176.0,0.082455]
[1724509952764,1.877874,64177.0,64176.0,0.026655]
[1724509952958,0.077877,64175.0,64172.0,0.3608]
[1724509953151,0.167877,64175.0,64172.0,0.3608]
[1724509953350,0.167877,64175.0,64172.0,0.38680381]
[1724509953563,0.167877,64175.0,64172.0,0.39475622]
[1724509954964,0.168877,64175.0,64172.0,0.39875622]
[1724509955162,0.077879,64173.0,64172.0,0.39080381]
[1724509955664,0.077879,64173.0,64172.0,0.39680381]
[1724509956265,0.077879,64173.0,64172.0,0.39080381]
[1724509956559,0.077879,64173.0,64172.0,0.39580381]
[1724509956761,0.078879,64173.0,64172.0,0.39580381]
[1724509963964,0.001,64173.0,64172.0,0.47368381]
[1724509964163,0.001,64173.0,64172.0,0.52658381]
[1724509975866,0.00023371,64181.0,64180.0,0.07787]
[1724509976070,0.00023371,64181.0,64180.0,0.43867]
[1724509976673,0.00023371,64181.0,64180.0,0.43871]
[1724509976866,0.15570141,64193.0,64185.0,0.077863]
[1724509977174,0.15570141,64193.0,64180.0,0.59585179]
[1724509977175,0.09,64191.0,64187.0,0.4508]
[1724509977979,0.09,64191.0,64187.0,0.528662]
[1724509978682,0.1,64191.0,64187.0,0.529662]
[1724509978868,0.01,64191.0,64188.0,0.07786]
[1724509979068,0.01,64191.0,64190.0,0.09]
[1724509979876,0.02,64191.0,64190.0,0.09]
[1724509980567,0.01,64191.0,64190.0,0.09]
[1724509980765,0.025,64191.0,64190.0,0.091]
[1724509980970,0.025,64191.0,64190.0,0.02765652]
[1724509980971,1.138074,64191.0,64190.0,0.02765652]
[1724509981165,1.21592041,64191.0,64190.0,0.01183274]
[1724509981370,0.545218,64190.0,64183.0,0.00023371]
[1724509981580,0.167865,64184.0,64183.0,0.00023371]
[1724509982173,0.167905,64184.0,64183.0,0.00023371]
[1724509983373,0.173905,64184.0,64183.0,0.00023371]
[1724509983972,0.173905,64184.0,64183.0,0.00123371]
[1724509984874,0.179905,64184.0,64183.0,0.00023371]
[1724509989284,0.089905,64184.0,64183.0,0.00023371]
[1724509990682,0.01204,64184.0,64183.0,0.16810071]
[1724509993893,0.01204,64184.0,64183.0,0.23007986]
[1724509996184,0.01204,64184.0,64183.0,0.16810071]
[1724509996495,0.01204,64184.0,64183.0,0.23007986]
[1724509996889,0.01204,64184.0,64183.0,0.16810071]
[1724510000382,0.01204,64184.0,64183.0,0.23007986]
[1724510002807,0.01204,64184.0,64183.0,0.16810071]
[1724510014217,1.81204,64184.0,64183.0,0.16810071]
[1724510014612,0.01204,64184.0,64183.0,0.16810071]
[1724510015011,0.01204,64184.0,64183.0,0.07810071]
[1724510015205,1.81204,64184.0,64183.0,0.16810071]
[1724510016617,0.06213705,64190.0,64189.0,0.077859]
[1724510016914,0.06213705,64190.0,64189.0,0.528659]
[1724510017421,0.06213705,64190.0,64189.0,0.528699]
[1724510017620,1.80104001,64193.0,64189.0,0.528699]
[1724510017818,0.012,64190.0,64189.0,0.439699]
[1724510018011,0.024,64190.0,64189.0,0.529699]
[1724510019811,0.012,64190.0,64189.0,0.528699]
[1724510020021,0.012,64190.0,64189.0,0.529699]
[1724510021011,0.012,64190.0,64189.0,0.528699]
[1724510021212,0.023,64190.0,64189.0,0.55653937]
[1724510029527,0.023,64190.0,64189.0,0.46653937]
[1724510029729,0.023,64190.0,64189.0,0.55653937]
[1724510031819,0.023,64190.0,64189.0,0.38868037]
[1724510032224,0.100858,64190.0,64189.0,0.02788037]
[1724510032525,0.128258,64190.0,64189.0,0.02788037]
[1724510032931,1.928258,64190.0,64189.0,0.02788037]
[1724510034529,0.128258,64190.0,64189.0,0.02788037]
[1724510035035,1.928258,64190.0,64189.0,0.02788037]
[1724510036033,0.128258,64190.0,64189.0,0.02788037]
[1724510043535,0.100858,64190.0,64189.0,0.10573937]
[1724510044841,0.1339343,64190.0,64189.0,0.10573937]
[1724510045737,0.100858,64190.0,64189.0,0.10573937]
[1724510046437,0.100858,64190.0,64189.0,0.02788037]
[1724510049938,0.023,64190.0,64189.0,0.46653937]
[1724510051044,0.023,64190.0,64189.0,0.52867828]
[1724510051244,0.023,64190.0,64189.0,0.46653937]
[1724510060353,0.023,64190.0,64189.0,0.52867828]
[1724510063761,0.023,64190.0,64189.0,0.46653937]
[1724510065756,1.823,64190.0,64189.0,0.46653937]
[1724510065954,1.823,64190.0,64189.0,0.52864791]
[1724510066463,1.823,64190.0,64189.0,0.46653937]
[1724510070068,0.023,64190.0,64189.0,0.46653937]
[1724510071365,0.023,64190.0,64189.0,0.5286725]
[1724510071962,0.023,64190.0,64189.0,0.46653937]
[1724510073558,1e-08,64190.0,64189.0,0.46653937]
[1724510073867,0.0440245,64193.0,64192.0,0.077855]
[1724510074066,0.00023371,64195.0,64194.0,0.167853]
[1724510075176,0.00023371,64195.0,64194.0,0.167893]
[1724510075374,0.00323371,64195.0,64194.0,0.167893]
[1724510076568,0.002,64195.0,64194.0,0.167893]
[1724510078075,0.04666417,64196.0,64195.0,0.077852]
[1724510078076,0.03365461,64196.0,64195.0,0.077852]
[1724510078278,0.03365461,64198.0,64195.0,0.06204288]
[1724510078476,0.03365461,64198.0,64197.0,0.09]
[1724510078682,0.03365461,64198.0,64197.0,0.167849]
[1724510079068,0.03365461,64198.0,64197.0,0.167889]
[1724510079275,0.00023371,64201.0,64200.0,0.077846]
[1724510079476,0.00023371,64201.0,64200.0,0.17567824]
[1724510080084,0.00023371,64201.0,64200.0,0.17571824]
[1724510082481,0.00323371,64201.0,64200.0,0.20154741]
[1724510092594,0.00323371,64201.0,64200.0,0.25854741]
[1724510100493,0.00323371,64201.0,64200.0,0.32059027]
[1724510102290,0.00323371,64201.0,64200.0,0.25854741]
[1724510102693,0.00323371,64201.0,64200.0,0.32064514]
[1724510103391,0.00323371,64201.0,64200.0,0.25854741]
[1724510108990,0.00323371,64201.0,64200.0,0.03370141]
[1724510109191,0.15891718,64201.0,64200.0,0.03370141]
[1724510109393,0.15891718,64201.0,64200.0,0.02586917]
[1724510109594,0.19991486,64201.0,64200.0,0.02586917]
[1724510112299,0.16657771,64201.0,64200.0,0.02586917]
[1724510112501,0.16657771,64201.0,64187.0,0.0568]
[1724510112502,0.077853,64194.0,64191.0,0.06213077]
[1724510112693,0.09,64192.0,64189.0,0.4508]
[1724510112894,0.07781538,64191.0,64189.0,0.4508]
[1724510113092,0.07781538,64190.0,64189.0,0.4508]
[1724510113299,0.077857,64191.0,64189.0,0.38775065]
[1724510113497,4e-05,64190.0,64189.0,0.38775065]
[1724510114389,4e-05,64190.0,64189.0,0.47775065]
[1724510114588,4e-05,64190.0,64189.0,0.48575065]
[1724510115504,4e-05,64190.0,64189.0,0.49375065]
[1724510116201,4e-05,64190.0,64189.0,0.48575065]
[1724510116503,4e-05,64190.0,64189.0,0.49375065]
[1724510117905,4e-05,64190.0,64189.0,0.48675065]
[1724510121507,4e-05,64190.0,64189.0,0.56460965]
[1724510125101,0.00023371,64201.0,64200.0,0.077846]
[1724510125305,0.00023371,64201.0,64200.0,0.4463561]
[1724510125806,0.00023371,64201.0,64200.0,0.4463961]
[1724510126401,0.00323371,64201.0,64200.0,0.4473961]
[1724510127604,0.00623371,64201.0,64200.0,0.4483961]
[1724510128109,0.00323371,64201.0,64200.0,0.4463961]
[1724510128306,0.00623371,64201.0,64200.0,0.4463961]
[1724510128703,0.00623371,64201.0,64200.0,0.47330945]
[1724510132807,0.00623371,64201.0,64200.0,0.83410945]
[1724510138108,0.08407771,64201.0,64200.0,0.38775335]
[1724510138510,1.94616355,64201.0,64200.0,0.38775335]
[1724510140314,2.41344355,64201.0,64200.0,0.38775335]
[1724510140718,2.35135771,64201.0,64200.0,0.38775335]
[1724510143522,1.88407771,64201.0,64200.0,0.38775335]
[1724510145414,1.88407771,64201.0,64190.0,0.3608]
[1724510145616,0.167856,64191.0,64190.0,0.10487317]
[1724510145810,0.167856,64191.0,64190.0,0.02701517]
[1724510146015,0.077861,64188.0,64186.0,0.167862]
[1724510146220,1.89,64191.0,64184.0,0.3608]
[1724510146221,0.077864,64185.0,64184.0,0.3608]
[1724510146414,0.167864,64185.0,64184.0,0.38698271]
[1724510146919,0.077904,64185.0,64184.0,0.38698271]
[1724510148914,0.077904,64185.0,64184.0,0.46484771]
[1724510149116,0.077904,64185.0,64184.0,0.47784771]
[1724510149325,0.077904,64185.0,64184.0,0.49184771]
[1724510157029,4e-05,64185.0,64184.0,0.49184771]
[1724510175243,4e-05,64185.0,64184.0,0.41398271]
[1724510175635,0.077904,64185.0,64184.0,0.05358271]
[1724510175941,0.077904,64185.0,64174.0,0.04664496]
[1724510175942,0.077872,64178.0,64174.0,0.04664496]
[1724510176130,0.18340098,64175.0,64170.0,0.3608]
[1724510176335,1.967881,64171.0,64170.0,0.3608]
[1724510176636,1.967881,64171.0,64170.0,0.38767732]
[1724510176841,1.967921,64171.0,64170.0,0.38767732]
[1724510178440,1.968921,64171.0,64170.0,0.41067732]
[1724510179039,2.0310782,64171.0,64170.0,0.39967732]
[1724510179244,2.0320782,64171.0,64170.0,0.41067732]
[1724510180238,1.969921,64171.0,64170.0,0.41067732]
[1724510198053,2.01646436,64171.0,64170.0,0.41067732]
[1724510198551,1.92646436,64171.0,64170.0,0.41067732]
[1724510198754,1.969921,64171.0,64170.0,0.41067732]
[1724510198952,0.00204,64171.0,64170.0,0.57855932]
[1724510199354,1.87204,64171.0,64170.0,0.57855932]
[1724510200151,1.949921,64171.0,64170.0,0.57855932]
[1724510200351,1.949921,64171.0,64170.0,0.48855932]
[1724510200750,2.039921,64171.0,64170.0,0.48855932]
[1724510201250,2.08646436,64171.0,64170.0,0.48855932]
[1724510202355,2.039921,64171.0,64170.0,0.48855932]
[1724510203459,2.1020782,64171.0,64170.0,0.48855932]
[1724510204252,3.09504915,64171.0,64170.0,0.023]
[1724510204454,3.2049852,64171.0,64170.0,0.0068883]
[1724510204750,3.2049852,64171.0,64164.0,0.00023371]
[1724510204751,0.155776,64165.0,64164.0,0.00023371]
[1724510204951,0.74711768,64165.0,64164.0,0.00023371]
[1724510205160,0.74732889,64165.0,64164.0,0.00023371]
[1724510205464,2.61736889,64165.0,64164.0,0.00023371]
[1724510206158,2.61762724,64165.0,64164.0,0.00023371]
[1724510206353,2.50846215,64165.0,64164.0,0.00023371]
[1724510206754,3.56247579,64165.0,64164.0,0.00023371]
[1724510207560,3.56347579,64165.0,64164.0,0.00023371]
[1724510208259,3.56175625,64165.0,64164.0,0.00023371]
[1724510208463,3.48486825,64165.0,64164.0,0.00023371]
[1724510208759,3.37702215,64165.0,64164.0,0.00023371]
[1724510208958,3.48503617,64165.0,64164.0,0.00023371]
[1724510209163,3.37602215,64165.0,64164.0,0.00023371]
[1724510209365,3.38702215,64165.0,64164.0,0.00023371]
[1724510209960,3.39702215,64165.0,64164.0,0.00023371]
[1724510210160,3.4902379,64165.0,64164.0,0.00023371]
[1724510210352,3.39702215,64165.0,64164.0,0.00023371]
[1724510210559,3.49022255,64165.0,64164.0,0.00023371]
[1724510211364,3.39702215,64165.0,64164.0,0.00023371]
[1724510211763,3.49022255,64165.0,64164.0,0.00023371]
[1724510212265,3.39702215,64165.0,64164.0,0.00023371]
[1724510213667,2.99702215,64165.0,64164.0,0.00023371]
[1724510214864,3.09017111,64165.0,64164.0,0.00023371]
[1724510217168,2.99702215,64165.0,64164.0,0.00023371]
[1724510217373,2.99607588,64165.0,64164.0,0.00023371]
[1724510217559,2.52851588,64165.0,64164.0,0.00023371]
[1724510218072,2.52852078,64165.0,64164.0,0.00023371]
[1724510220884,0.077896,64158.0,64157.0,0.04748814]
[1724510221166,0.22998189,64158.0,64157.0,0.04748814]
[1724510221671,0.23002189,64158.0,64157.0,0.04748814]
[1724510221874,0.23016938,64158.0,64157.0,0.07425771]
[1724510222064,0.14016938,64158.0,64157.0,0.07425771]
[1724510222264,0.23216938,64158.0,64157.0,0.07425771]
[1724510223365,0.23516938,64158.0,64157.0,0.07425771]
[1724510223874,0.14516938,64158.0,64157.0,0.07425771]
[1724510224068,0.17308349,64158.0,64157.0,0.07425771]
[1724510224767,0.17308349,64158.0,64157.0,0.15215571]
[1724510227273,0.23516938,64158.0,64157.0,0.15215571]
[1724510228774,0.17308349,64158.0,64157.0,0.15215571]
[1724510233276,0.25088492,64158.0,64157.0,0.15215571]
[1724510233978,0.17308349,64158.0,64157.0,0.15215571]
[1724510234181,0.20374779,64158.0,64157.0,0.15215571]
[1724510235285,0.20378918,64158.0,64157.0,0.15215571]
[1724510236184,0.29693814,64158.0,64157.0,0.15215571]
[1724510237574,0.20378918,64158.0,64157.0,0.15215571]
[1724510237776,0.29724503,64158.0,64157.0,0.15215571]
[1724510237979,0.20378918,64158.0,64157.0,0.15215571]
[1724510238283,0.20378918,64158.0,64157.0,0.07425771]
[1724510239771,0.28168518,64158.0,64157.0,0.02676957]
[1724510239973,0.0779,64155.0,64154.0,0.00024]
[1724510240183,0.26137952,64155.0,64154.0,0.00024]
[1724510240386,2.16208521,64155.0,64154.0,0.02741808]
[1724510240982,2.16212521,64155.0,64154.0,0.02741808]
[1724510244784,2.16207492,64155.0,64154.0,0.02741808]
[1724510247485,2.0685954,64155.0,64154.0,0.02741808]
[1724510248485,2.16206494,64155.0,64154.0,0.02741808]
[1724510251980,2.0685954,64155.0,64154.0,0.02741808]
[1724510253389,2.16206494,64155.0,64154.0,0.02741808]
[1724510253787,2.0685954,64155.0,64154.0,0.02741808]
[1724510253992,2.16205843,64155.0,64154.0,0.02741808]
[1724510259396,2.16203072,64155.0,64154.0,0.02741808]
[1724510262697,2.06856769,64155.0,64154.0,0.02741808]
[1724510264300,2.06856449,64155.0,64154.0,0.02741808]
[1724510265206,2.16204169,64155.0,64154.0,0.02741808]
[1724510266496,2.06856449,64155.0,64154.0,0.02741808]
[1724510269297,2.06857163,64155.0,64154.0,0.02741808]
[1724510271500,2.06857163,64155.0,64154.0,0.01173335]
[1724510271703,0.077901,64154.0,64153.0,0.0625]
[1724510271893,0.10853263,64154.0,64153.0,0.0625]
[1724510272301,0.10853263,64154.0,64153.0,0.09007368]
[1724510273418,0.20203494,64154.0,64153.0,0.09007368]
[1724510274103,0.20191892,64154.0,64153.0,0.09007368]
[1724510278306,0.20192278,64154.0,64153.0,0.09007368]
[1724510279204,0.20192032,64154.0,64153.0,0.09007368]
[1724510279601,0.20196032,64154.0,64153.0,0.13671864]
[1724510280105,0.10845801,64154.0,64153.0,0.09007368]
[1724510280305,0.20196323,64154.0,64153.0,0.09007368]
[1724510282511,0.10845801,64154.0,64153.0,0.09007368]
[1724510282811,0.10845718,64154.0,64153.0,0.09007368]
[1724510283607,0.2019632,64154.0,64153.0,0.09007368]
[1724510284508,0.17144702,64154.0,64153.0,0.09007368]
[1724510284714,0.20196364,64154.0,64153.0,0.09007368]
[1724510285215,0.10845762,64154.0,64153.0,0.09007368]
[1724510285614,0.077941,64154.0,64153.0,0.09007368]
[1724510285810,0.10845636,64154.0,64153.0,0.09007368]
[1724510287713,0.10844807,64154.0,64153.0,0.09007368]
[1724510288005,0.03054707,64154.0,64153.0,0.09007368]
[1724510288212,4e-05,64154.0,64153.0,0.23014488]
[1724510288911,0.0779168,64154.0,64153.0,0.23014488]
[1724510289114,4e-05,64154.0,64153.0,0.23014488]
[1724510290008,0.09004,64154.0,64153.0,0.23014488]
[1724510290208,0.12064653,64154.0,64153.0,0.16797568]
[1724510290403,0.16788159,64154.0,64153.0,0.16797568]
[1724510291209,0.167941,64154.0,64153.0,0.16797568]
[1724510291911,0.24578259,64154.0,64153.0,0.16797568]
[1724510292111,0.167941,64154.0,64153.0,0.16797568]
[1724510308240,0.167941,64154.0,64153.0,0.52877568]